bitfinex/quotes_SOLUSD_20250508
["timestamp","ask_amount","ask_price","bid_price","bid_amount"]
[1746739026990,18.64964886,162.39,162.36,29.50007946]
[1746739026991,0.14216157,162.38,162.36,29.50007946]
[1746739027174,0.14216157,162.38,162.32,55.50007946]
[1746739027369,6.30075222,162.38,162.36,29.50007946]
[1746739027589,18.64964886,162.37,162.36,29.50007946]
[1746739029378,18.79181043,162.37,162.32,26.0]
[1746739029578,0.14216157,162.34,162.32,26.0]
[1746739029890,0.14216157,162.34,162.28,26.0]
[1746739030285,0.14216157,162.34,162.33,29.50007946]
[1746739030896,0.14216157,162.34,162.32,29.50007946]
[1746739031090,0.14216157,162.34,162.28,26.0]
[1746739031386,0.14216157,162.34,162.32,29.50007946]
[1746739031587,18.64964886,162.36,162.33,29.50007946]
[1746739031793,18.64964886,162.36,162.35,29.50007946]
[1746739031972,18.64964886,162.38,162.35,29.50007946]
[1746739032169,18.79181043,162.38,162.37,29.50007946]
[1746739032672,38.9976633,162.4,162.37,29.50007946]
[1746739032878,18.64964886,162.39,162.35,26.0]
[1746739033073,0.14216157,162.38,162.35,26.0]
[1746739033794,0.14216157,162.38,162.31,26.0]
[1746739033997,0.14216157,162.38,162.37,29.50007946]
[1746739034175,6.30078712,162.38,162.35,26.0]
[1746739034503,6.30078712,162.38,162.37,29.50007946]
[1746739036285,6.30078712,162.38,162.35,26.0]
[1746739036794,6.30078712,162.38,162.37,29.50007946]
[1746739037596,21.69677184,162.38,162.26,6.16294757]
[1746739037806,21.69677184,162.38,162.25,8.0953]
[1746739037807,0.14216157,162.36,162.34,29.50007946]
[1746739037981,0.14216157,162.36,162.27,6.16249282]
[1746739038182,0.14216157,162.36,162.35,29.50007946]
[1746739038477,155.04964886,162.37,162.35,29.50007946]
[1746739038681,155.19181043,162.37,162.36,29.50007946]
[1746739038874,18.64964886,162.37,162.36,29.50007946]
[1746739039076,6.15611918,162.44,162.36,59.00015892]
[1746739039295,6.15536131,162.46,162.39,26.0]
[1746739039684,18.64964886,162.45,162.43,29.50007946]
[1746739039889,155.04964886,162.45,162.43,29.50007946]
[1746739040090,0.14216157,162.44,162.43,29.50007946]
[1746739040605,155.04964886,162.45,162.43,29.50007946]
[1746739040911,155.04964886,162.45,162.37,26.0]
[1746739041218,155.04964886,162.45,162.44,29.50007946]
[1746739041219,161.20538908,162.45,162.44,29.50007946]
[1746739041391,24.80538908,162.45,162.38,26.0]
[1746739041574,0.14216157,162.42,162.37,26.0]
[1746739041793,0.14216157,162.42,162.41,29.50007946]
[1746739041992,0.14216157,162.42,162.37,26.0]
[1746739042300,0.14216157,162.42,162.34,7.7152]
[1746739042516,0.14216157,162.42,162.4,29.50007946]
[1746739042722,0.14216157,162.42,162.35,26.0]
[1746739043025,0.14216157,162.42,162.41,29.50007946]
[1746739043219,18.79181043,162.4,162.35,26.0]
[1746739043420,18.79181043,162.4,162.39,29.50007946]
[1746739044523,18.79181043,162.4,162.35,26.0]
[1746739044690,18.79181043,162.4,162.39,29.50007946]
[1746739045298,6.29979703,162.4,162.39,29.50007946]
[1746739045996,6.15649818,162.43,162.37,26.0]
[1746739046200,18.64964886,162.46,162.39,27.5946]
[1746739046390,6.15308885,162.52,162.45,29.50007946]
[1746739046722,18.64964886,162.51,162.42,26.0]
[1746739046897,18.64964886,162.51,162.5,29.50007946]
[1746739047107,261.6737526,162.55,162.5,29.50007946]
[1746739047108,6.14817091,162.65,162.53,26.0]
[1746739047297,6.58347533,162.69,162.53,26.0]
[1746739047298,6.14741501,162.67,162.59,26.0]
[1746739047612,30.0,162.6,162.59,26.0]
[1746739047919,30.0,162.6,162.59,55.50007946]
[1746739048088,6.14741501,162.67,162.59,55.50007946]
[1746739048290,6.14741501,162.67,162.66,29.50007946]
[1746739048494,6.14741501,162.67,162.59,26.0]
[1746739048722,18.79181043,162.66,162.59,26.0]
[1746739048898,21.51595253,162.67,162.57,26.0]
[1746739049093,18.64964886,162.66,162.57,26.0]
[1746739049321,21.51595253,162.67,162.56,29.50007946]
[1746739049517,21.51595253,162.67,162.59,26.0]
[1746739049910,18.64964886,162.66,162.59,26.0]
[1746739050340,18.64964886,162.66,162.52,1.22970589]
[1746739050635,0.14216157,162.65,162.52,1.22970589]
[1746739050843,0.14216157,162.65,162.56,44.03676294]
[1746739051064,0.14216157,162.65,162.5,12.29619093]
[1746739051354,40.31305497,162.63,162.5,11.06603661]
[1746739051519,40.31305497,162.63,162.48,44.03676294]
[1746739051714,40.31305497,162.63,162.58,44.03676294]
[1746739051923,71.05769003,162.63,162.51,26.0]
[1746739052237,71.05769003,162.63,162.48,44.03676294]
[1746739052414,71.05769003,162.63,162.58,44.03676294]
[1746739052619,18.79181043,162.61,162.58,44.03676294]
[1746739052844,18.79181043,162.61,162.51,26.0]
[1746739053352,21.52521525,162.6,162.51,26.0]
[1746739053521,18.64964886,162.59,162.51,26.0]
[1746739054523,18.64964886,162.59,162.56,44.03676294]
[1746739054931,18.64964886,162.59,162.51,26.0]
[1746739055137,18.64964886,162.59,162.57,44.03676294]
[1746739055334,24.80046691,162.58,162.57,44.03676294]
[1746739055731,40.17751205,162.58,162.55,44.03676294]
[1746739055927,40.17751205,162.58,162.54,44.03676294]
[1746739056138,40.17751205,162.58,162.51,26.0]
[1746739056444,40.17751205,162.58,162.54,44.03676294]
[1746739056644,40.17751205,162.58,162.51,26.0]
[1746739057225,40.17751205,162.58,162.54,44.03676294]
[1746739057726,40.17751205,162.58,162.51,26.0]
[1746739058228,40.17751205,162.58,162.55,44.03676294]
[1746739058429,6.15081805,162.58,162.57,44.03676294]
[1746739058632,6.15081805,162.58,162.54,26.0]
[1746739059146,15.37458773,162.61,162.57,44.03676294]
[1746739059324,15.37458773,162.61,162.54,26.0]
[1746739059525,15.37458773,162.61,162.58,44.03676294]
[1746739059843,15.37458773,162.61,162.54,26.0]
[1746739060246,18.64964886,162.6,162.54,26.0]
[1746739060639,18.64964886,162.58,162.51,26.0]
[1746739060854,0.14216157,162.59,162.55,44.03676294]
[1746739061052,6.15043975,162.59,162.57,44.03676294]
[1746739061219,15.37458773,162.61,162.59,3.84956025]
[1746739062120,6.1500615,162.6,162.59,3.84956025]
[1746739063027,15.37458773,162.61,162.59,3.84956025]
[1746739063833,6.14930512,162.62,162.59,3.84956025]
[1746739064422,6.14930512,162.62,162.59,47.88632319]
[1746739064846,6.14930512,162.62,162.59,3.84956025]
[1746739067147,62.6864118,162.63,162.59,3.84956025]
[1746739067326,18.64964886,162.63,162.59,3.84956025]
[1746739067730,62.6864118,162.61,162.59,3.84956025]
[1746739067993,18.64964886,162.61,162.59,3.84956025]
[1746739068133,18.64964886,162.6,162.59,3.84956025]
[1746739068450,21.50273391,162.77,162.6,25.12461043]
[1746739068759,6.14175162,162.82,162.7,26.0]
[1746739069135,21.49613068,162.82,162.7,26.0]
[1746739069435,21.49613068,162.82,162.74,26.0]
[1746739069837,18.64964886,162.81,162.76,44.03676294]
[1746739070069,18.64964886,162.81,162.74,26.0]
[1746739070350,6.14175162,162.82,162.74,26.0]
[1746739071134,6.14137443,162.83,162.81,44.03676294]
[1746739071335,6.14137443,162.83,162.77,26.0]
[1746739071336,6.13986615,162.87,162.77,26.0]
[1746739071735,6.13986615,162.87,162.75,26.0]
[1746739071736,18.64964886,162.86,162.75,26.0]
[1746739071956,18.64964886,162.86,162.77,26.0]
[1746739072140,18.64964886,162.86,162.74,7.37298196]
[1746739072141,18.64964886,162.86,162.78,6.3328]
[1746739072339,18.64964886,162.86,162.85,44.03676294]
[1746739072563,6.13986615,162.87,162.81,26.0]
[1746739073076,50.17662909,162.87,162.81,26.0]
[1746739073242,6.13986615,162.87,162.81,26.0]
[1746739073564,18.64964886,162.86,162.81,26.0]
[1746739074164,18.64964886,162.86,162.83,26.0]
[1746739074362,6.13798183,162.92,162.83,26.0]
[1746739074838,18.64964886,162.91,162.83,26.0]
[1746739075034,18.64964886,162.91,162.84,26.0]
[1746739075365,6.1364752,162.96,162.88,70.03676294]
[1746739075667,21.47766322,162.96,162.82,1.6042]
[1746739075970,44.03676294,162.86,162.79,6.14288346]
[1746739076134,65.51442616,162.96,162.78,56.3328]
[1746739076135,18.79181043,162.94,162.81,44.03676294]
[1746739076339,18.79181043,162.94,162.78,62.47604314]
[1746739076543,0.14216157,162.94,162.78,62.47604314]
[1746739076757,18.64964886,162.95,162.81,26.0]
[1746739076936,44.03676294,162.84,162.78,56.3328]
[1746739077267,15.34919819,162.88,162.78,6.3328]
[1746739077437,18.64964886,162.85,162.81,44.03676294]
[1746739077642,44.03676294,162.84,162.78,6.3328]
[1746739077856,44.03676294,162.81,162.74,7.37272091]
[1746739078133,21.63169309,162.87,162.77,26.0]
[1746739078134,18.64964886,162.86,162.77,26.0]
[1746739078460,18.64964886,162.86,162.78,26.0]
[1746739078632,18.64964886,162.86,162.74,6.14458117]
[1746739078633,18.64964886,162.82,162.74,6.14458117]
[1746739078963,21.63169309,162.87,162.73,7.75708199]
[1746739079141,18.64964886,162.84,162.78,44.03676294]
[1746739079345,18.64964886,162.84,162.79,44.03676294]
[1746739079537,18.64964886,162.84,162.79,26.0]
[1746739079957,18.64964886,162.88,162.83,26.0]
[1746739080270,6.1383586,162.91,162.8,26.0]
[1746739080579,18.64964886,162.9,162.8,26.0]
[1746739081245,24.78933139,162.88,162.81,26.0]
[1746739081641,6.13968253,162.88,162.8,26.0]
[1746739082172,45.03676294,162.84,162.8,26.0]
[1746739082376,44.03676294,162.82,162.75,6.14407518]
[1746739082858,6.13315743,163.05,162.97,50.0]
[1746739083058,15.32881965,163.1,162.98,26.0]
[1746739083360,18.79181043,163.08,162.96,26.0]
[1746739083668,6.13083195,163.11,162.98,26.0]
[1746739084061,21.45791183,163.11,162.98,26.0]
[1746739084262,44.03676294,163.03,162.96,26.0]
[1746739084572,21.45791183,163.11,162.96,26.0]
[1746739084744,44.03676294,163.02,162.96,26.0]
[1746739085364,18.64964886,163.05,162.96,70.03676294]
[1746739085542,18.64964886,163.05,162.96,26.0]
[1746739085742,44.03676294,163.02,162.96,26.0]
[1746739086049,44.03676294,163.02,162.96,70.03676294]
[1746739086262,44.03676294,163.02,162.96,26.0]
[1746739086467,18.64964886,163.05,162.96,26.0]
[1746739086673,18.64964886,163.05,162.98,26.0]
[1746739086885,18.64964886,163.05,162.96,26.0]
[1746739087054,44.03676294,163.01,162.96,26.0]
[1746739087253,6.13346418,163.04,162.96,26.0]
[1746739087481,44.03676294,163.01,162.96,26.0]
[1746739087680,44.03676294,163.0,162.96,26.0]
[1746739087858,44.03676294,162.99,162.93,50.0]
[1746739088061,65.50388757,163.04,162.93,50.0]
[1746739088268,21.46712463,163.04,162.93,50.0]
[1746739088484,6.13346418,163.04,162.93,56.1374135]
[1746739088658,6.13346418,163.04,162.96,26.0]
[1746739088862,6.13346418,163.04,162.97,44.03676294]
[1746739089067,44.03676294,163.02,162.96,70.03676294]
[1746739089250,0.14216157,163.09,162.96,26.0]
[1746739089451,44.03676294,163.02,162.96,26.0]
[1746739089785,44.03676294,163.0,162.96,26.0]
[1746739090185,18.64964886,163.07,162.96,26.0]
[1746739090356,18.64964886,163.04,162.96,26.0]
[1746739090551,18.64964886,163.07,162.98,26.0]
[1746739090780,18.64964886,163.07,162.96,70.03676294]
[1746739090989,18.79181043,163.07,162.96,70.03676294]
[1746739091174,18.79181043,163.07,162.96,26.0]
[1746739091381,6.13459296,163.01,162.96,70.03676294]
[1746739091986,6.13459296,163.01,162.96,26.0]
[1746739092161,6.13459296,163.01,162.97,44.03676294]
[1746739092359,6.13459296,163.01,162.98,44.03676294]
[1746739092888,6.13459296,163.01,162.96,26.0]
[1746739093363,15.33396971,163.04,162.96,26.0]
[1746739093565,44.03676294,163.03,162.96,26.0]
[1746739093787,15.33396971,163.04,162.97,44.03676294]
[1746739093998,15.33396971,163.04,162.98,26.0]
[1746739094291,6.133088,163.05,163.0,44.03676294]
[1746739094500,6.133088,163.05,163.03,26.0]
[1746739094869,0.225293,163.18,163.01,1.22639683]
[1746739094870,6.13083195,163.11,163.05,26.0]
[1746739095270,6.1300803,163.13,163.05,27.22618025]
[1746739095465,6.1300803,163.13,163.07,26.0]
[1746739095885,6.12857755,163.17,163.05,1.22618025]
[1746739096065,18.64964886,163.16,163.08,26.0]
[1746739096273,6.12857755,163.17,163.08,26.0]
[1746739096476,21.45002144,163.17,163.08,26.0]
[1746739096678,21.45002144,163.17,163.11,44.03676294]
[1746739096864,21.45002144,163.17,163.1,26.0]
[1746739097259,6.12857755,163.17,163.08,26.0]
[1746739097466,6.12857755,163.17,163.15,26.0]
[1746739097697,6.12857755,163.17,163.14,26.0]
[1746739098403,0.225293,163.18,163.12,70.03676294]
[1746739098589,0.225293,163.18,163.17,26.0]
[1746739098998,0.225293,163.18,163.16,50.0]
[1746739099168,0.225293,163.18,163.17,45.26164006]
[1746739099369,6.12294881,163.32,163.21,26.0]
[1746739099572,6.12294881,163.32,163.23,26.0]
[1746739099866,1.6118,163.35,163.23,26.0]
[1746739099867,6.1224301,163.34,163.23,26.0]
[1746739100087,6.1224301,163.34,163.25,26.0]
[1746739100266,6.12169402,163.36,163.25,26.0]
[1746739100468,40.55879108,163.38,163.27,26.0]
[1746739101567,55.8605416,163.38,163.23,50.0]
[1746739101767,55.8605416,163.38,163.26,26.0]
[1746739102062,0.14216157,163.36,163.21,50.0]
[1746739102266,0.14216157,163.36,163.2,50.16412513]
[1746739102494,0.14216157,163.36,163.23,26.0]
[1746739102802,18.64964886,163.37,163.29,26.0]
[1746739102978,40.55879108,163.38,163.34,44.03676294]
[1746739103300,34.43780887,163.38,163.31,26.0]
[1746739103662,34.43780887,163.38,163.35,26.0]
[1746739103867,34.43780887,163.38,163.37,44.03676294]
[1746739104088,34.43780887,163.38,163.34,50.0]
[1746739104307,34.43780887,163.38,163.34,26.0]
[1746739104485,40.55860496,163.38,163.34,26.0]
[1746739104900,40.55860496,163.38,163.29,50.0]
[1746739105079,40.55860496,163.38,163.28,6.1628]
[1746739105276,40.55860496,163.38,163.31,26.0]
[1746739105472,62.6864118,163.35,163.24,56.12583001]
[1746739105670,62.6864118,163.35,163.22,6.5257]
[1746739105671,44.03676294,163.32,163.22,6.5257]
[1746739105972,44.03676294,163.26,163.17,56.5257]
[1746739106178,0.14216157,163.3,163.15,10.0]
[1746739106699,0.14216157,163.3,163.16,26.0]
[1746739106993,28.64964886,163.32,163.15,10.0]
[1746739106994,18.64964886,163.24,163.15,10.0]
[1746739107182,20.36511043,163.25,163.15,10.0]
[1746739107369,0.14216157,163.23,163.15,10.0]
[1746739107669,0.14216157,163.23,163.2,44.03676294]
[1746739107865,20.22294886,163.25,163.15,10.0]
[1746739108096,12.46657301,163.26,163.16,26.0]
[1746739108305,18.64964886,163.25,163.22,44.03676294]
[1746739108474,18.64964886,163.25,163.16,26.0]
[1746739108672,18.64964886,163.22,163.16,26.0]
[1746739108892,0.14216157,163.24,163.15,10.0]
[1746739109272,62.82857337,163.22,163.15,10.0]
[1746739109478,18.79181043,163.22,163.15,54.03676294]
[1746739109792,24.77537301,163.25,163.21,44.03676294]
[1746739109997,18.64964886,163.24,163.15,10.0]
[1746739110211,0.14216157,163.23,163.15,10.0]
[1746739110525,6.12572415,163.25,163.19,44.03676294]
[1746739110803,10.0,163.34,163.19,44.03676294]
[1746739110804,6.12290487,163.33,163.24,26.0]
[1746739110969,6.12211887,163.35,163.29,44.03676294]
[1746739111172,44.03676294,163.32,163.24,26.0]
[1746739111367,50.16045101,163.31,163.25,44.03676294]
[1746739111605,6.12368807,163.31,163.25,44.03676294]
[1746739111810,6.12368807,163.31,163.24,26.0]
[1746739112102,18.64964886,163.25,163.19,26.0]
[1746739112314,0.14216157,163.24,163.15,10.0]
[1746739112609,44.03676294,163.19,163.15,10.0]
[1746739112780,18.64964886,163.21,163.15,10.0]
[1746739112977,0.14216157,163.24,163.15,10.0]
[1746739113206,44.03676294,163.2,163.15,10.0]
[1746739113388,24.77676334,163.21,163.15,10.0]
[1746739113583,0.14216157,163.2,163.15,10.0]
[1746739113787,18.64964886,163.2,163.15,10.0]
[1746739114679,6.12626089,163.24,163.19,44.03676294]
[1746739114907,30.60834361,163.36,163.23,44.03676294]
[1746739114908,6.12407373,163.29,163.23,44.03676294]
[1746739115107,6.12407373,163.29,163.26,44.03676294]
[1746739115295,6.12407373,163.29,163.2,26.0]
[1746739115500,18.64964886,163.28,163.25,44.03676294]
[1746739115716,6.12368788,163.31,163.27,44.03676294]
[1746739116016,6.12368788,163.31,163.23,26.0]
[1746739116178,44.03676294,163.3,163.21,26.0]
[1746739116379,18.64964886,163.24,163.18,26.0]
[1746739116605,0.14216157,163.29,163.18,26.0]
[1746739116809,0.14216157,163.29,163.22,44.03676294]
[1746739117020,0.14216157,163.29,163.18,26.0]
[1746739117021,18.64964886,163.3,163.25,44.03676294]
[1746739117209,62.6864118,163.26,163.18,26.0]
[1746739117419,18.64964886,163.22,163.15,36.0]
[1746739117612,65.47889979,163.23,163.15,36.0]
[1746739117613,6.12632481,163.23,163.15,36.0]
[1746739117926,24.77551289,163.25,163.15,36.0]
[1746739118132,6.12586403,163.25,163.22,44.03676294]
[1746739118329,6.12586403,163.25,163.15,36.0]
[1746739118531,0.14216157,163.29,163.24,44.03676294]
[1746739118532,6.12407373,163.29,163.24,44.03676294]
[1746739118819,6.12407373,163.29,163.2,44.03676294]
[1746739119008,6.12407373,163.29,163.23,26.0]
[1746739119208,6.12407373,163.29,163.27,44.03676294]
[1746739119400,6.12257393,163.33,163.23,26.0]
[1746739119600,65.46577169,163.33,163.26,44.03676294]
[1746739119824,0.14216157,163.31,163.25,44.03676294]
[1746739120024,44.03676294,163.29,163.21,26.0]
[1746739120327,0.14216157,163.26,163.15,10.0]
[1746739120498,18.79181043,163.32,163.23,44.03676294]
[1746739120707,18.79181043,163.32,163.2,44.03676294]
[1746739120901,18.64964886,163.32,163.29,44.03676294]
[1746739121105,6.12220199,163.34,163.31,44.03676294]
[1746739121323,44.03676294,163.33,163.2,94.03676294]
[1746739121530,44.03676294,163.33,163.24,44.03676294]
[1746739121531,18.64964886,163.3,163.24,44.03676294]
[1746739121822,62.6864118,163.29,163.21,26.0]
[1746739122028,18.64964886,163.27,163.18,26.0]
[1746739122205,0.14216157,163.3,163.2,44.03676294]
[1746739122404,18.64964886,163.29,163.2,44.03676294]
[1746739122610,18.64964886,163.29,163.24,44.03676294]
[1746739122914,18.64964886,163.29,163.2,44.03676294]
[1746739123098,18.64964886,163.29,163.19,26.0]
[1746739123306,18.64964886,163.3,163.2,6.12711777]
[1746739123499,18.64964886,163.3,163.25,44.03676294]
[1746739123700,62.6864118,163.3,163.2,6.12711777]
[1746739123927,18.64964886,163.3,163.27,44.03676294]
[1746739124104,18.64964886,163.3,163.2,50.16388071]
[1746739124308,18.64964886,163.3,163.23,44.03676294]
[1746739124626,18.64964886,163.27,163.19,26.0]
[1746739124829,0.14216157,163.29,163.19,26.0]
[1746739125010,18.64964886,163.3,163.24,44.03676294]
[1746739125205,0.14216157,163.29,163.15,16.12928889]
[1746739125408,6.12444879,163.28,163.23,44.03676294]
[1746739125611,24.77409765,163.28,163.23,44.03676294]
[1746739125930,24.77409765,163.28,163.18,26.0]
[1746739126329,18.64964886,163.27,163.18,26.0]
[1746739126827,18.79181043,163.27,163.15,10.0]
[1746739127322,21.44213685,163.23,163.15,10.0]
[1746739127725,44.03676294,163.21,163.15,10.0]
[1746739127929,18.64964886,163.22,163.15,10.0]
[1746739128126,18.64964886,163.22,163.17,44.03676294]
[1746739128321,18.64964886,163.22,163.15,10.0]
[1746739128922,18.64964886,163.22,163.18,44.03676294]
[1746739129124,18.64964886,163.22,163.15,10.0]
[1746739129125,44.03676294,163.19,163.15,10.0]
[1746739129433,6.12895317,163.16,163.15,10.0]
[1746739129638,6.12863356,163.17,163.15,54.03676294]
[1746739129841,6.12745098,163.2,163.16,44.03676294]
[1746739130018,18.64964886,163.22,163.19,44.03676294]
[1746739130329,62.6864118,163.22,163.15,10.0]
[1746739130627,62.6864118,163.22,163.17,44.03676294]
[1746739130628,0.14216157,163.21,163.17,44.03676294]
[1746739130836,18.64964886,163.22,163.19,44.03676294]
[1746739131021,18.64964886,163.22,163.18,44.03676294]
[1746739131224,18.64964886,163.22,163.15,10.0]
[1746739131434,6.12707554,163.21,163.19,44.03676294]
[1746739131625,6.12707554,163.21,163.15,10.0]
[1746739132614,6.12707554,163.21,163.18,44.03676294]
[1746739132915,6.12707554,163.21,163.15,10.0]
[1746739132916,18.64964886,163.2,163.15,10.0]
[1746739133116,6.12707554,163.21,163.17,44.03676294]
[1746739133326,6.12707554,163.21,163.15,10.0]
[1746739133531,6.12707554,163.21,163.19,44.03676294]
[1746739133926,6.12707554,163.21,163.15,10.0]
[1746739134441,6.12707554,163.21,163.19,44.03676294]
[1746739134636,18.64964886,163.2,163.15,10.0]
[1746739134844,18.64964886,163.2,163.16,44.03676294]
[1746739135050,18.64964886,163.2,163.15,10.0]
[1746739135424,18.64964886,163.2,163.16,44.03676294]
[1746739135727,6.12782645,163.19,163.15,10.0]
[1746739135928,6.12782645,163.19,163.16,44.03676294]
[1746739136135,18.64964886,163.18,163.15,10.0]
[1746739136720,0.14216157,163.17,163.15,10.0]
[1746739136939,62.6864118,163.18,163.15,10.0]
[1746739136940,0.14216157,163.18,163.15,10.0]
[1746739137137,62.82857337,163.18,163.15,10.0]
[1746739137319,18.64964886,163.16,163.15,10.0]
[1746739137513,24.77860203,163.16,163.15,10.0]
[1746739137714,68.81536497,163.16,163.15,10.0]
[1746739138024,24.9207636,163.16,163.15,10.0]
[1746739138224,68.95752654,163.16,163.15,10.0]
[1746739138443,24.9207636,163.16,163.15,10.0]
[1746739138739,0.14216157,163.15,163.0,6.1642]
[1746739138941,0.14216157,163.15,163.09,44.03676294]
[1746739139139,18.64964886,163.12,163.08,44.03676294]
[1746739139625,21.45791183,163.11,163.08,44.03676294]
[1746739139826,18.64964886,163.1,163.08,44.03676294]
[1746739140032,18.64964886,163.1,163.09,44.03676294]
[1746739140239,18.64964886,163.1,163.04,44.03676294]
[1746739140719,62.6864118,163.1,163.04,44.03676294]
[1746739141149,18.64964886,163.1,163.04,44.03676294]
[1746739141345,18.64964886,163.1,163.05,44.03676294]
[1746739141517,21.46054325,163.09,163.05,44.03676294]
[1746739141724,44.03676294,163.06,162.96,8.56888106]
[1746739141922,18.64964886,163.05,163.0,44.03676294]
[1746739142121,6.35186157,163.08,162.96,44.03676294]
[1746739142122,18.64964886,163.07,162.96,44.03676294]
[1746739142336,18.64964886,163.07,163.01,44.03676294]
[1746739142523,44.03676294,163.06,162.96,70.03676294]
[1746739142832,18.64964886,163.07,163.02,44.03676294]
[1746739143042,62.6864118,163.07,163.01,44.03676294]
[1746739143352,18.64964886,163.07,162.96,44.03676294]
[1746739143546,21.46449159,163.06,162.96,44.03676294]
[1746739143736,65.50125453,163.06,163.0,44.03676294]
[1746739143924,18.64964886,163.05,162.96,44.03676294]
[1746739144125,6.13271188,163.06,162.97,1.22668628]
[1746739144326,18.64964886,163.05,162.96,44.03676294]
[1746739145349,18.64964886,163.05,163.01,44.03676294]
[1746739145553,6.13346418,163.04,162.96,26.0]
[1746739145749,6.13346418,163.04,162.96,70.03676294]
[1746739145954,6.13346418,163.04,162.96,26.0]
[1746739146257,6.13346418,163.04,162.96,70.03676294]
[1746739146631,6.13346418,163.04,163.01,44.03676294]
[1746739147029,6.13346418,163.04,162.96,26.0]
[1746739147222,6.13346418,163.04,163.01,44.03676294]
[1746739147456,6.13346418,163.04,162.96,26.0]
[1746739147457,21.46712463,163.04,162.96,26.0]
[1746739147754,6.13346418,163.04,163.03,44.03676294]
[1746739148125,40.11677349,163.04,162.97,26.0]
[1746739148767,40.11677349,163.04,162.96,26.0]
[1746739148933,40.11677349,163.04,162.93,50.0]
[1746739149127,6.13346418,163.04,162.96,44.03676294]
[1746739149348,6.13346418,163.04,163.02,44.03676294]
[1746739149550,24.78236074,163.06,163.03,44.03676294]
[1746739150028,40.11414045,163.06,162.94,26.0]
[1746739150234,18.64964886,163.05,162.94,26.0]
[1746739150446,62.6864118,163.05,162.99,44.03676294]
[1746739150650,18.64964886,163.05,163.02,44.03676294]
[1746739150839,21.46449159,163.06,163.02,44.03676294]
[1746739151048,18.64964886,163.05,163.02,44.03676294]
[1746739151337,6.13271188,163.06,163.04,44.03676294]
[1746739151566,6.13271188,163.06,163.05,44.03676294]
[1746739151776,6.13271188,163.06,163.03,44.03676294]
[1746739152567,21.46449159,163.06,163.03,44.03676294]
[1746739152767,21.46449159,163.06,162.99,26.0]
[1746739153272,6.13271188,163.06,163.05,44.03676294]
[1746739153570,1.0,163.07,163.05,44.03676294]
[1746739153772,1.0,163.07,163.06,44.03676294]
[1746739154068,1.0,163.07,163.02,26.0]
[1746739154268,7.1323899,163.07,163.03,26.0]
[1746739154441,7.1323899,163.07,163.06,44.03676294]
[1746739154649,1.0,163.07,163.06,44.03676294]
[1746739155065,7.1323358,163.07,163.06,44.03676294]
[1746739155659,7.1323358,163.07,163.02,27.22635147]
[1746739155860,1.0,163.07,163.06,44.03676294]
[1746739156474,7.1323358,163.07,163.0,26.0]
[1746739156680,7.1323358,163.07,163.0,27.22635036]
[1746739156846,7.1323358,163.07,163.06,44.03676294]
[1746739157047,7.1323358,163.07,163.0,27.22635036]
[1746739157264,7.1323358,163.07,163.06,44.03676294]
[1746739158451,1.0,163.07,163.01,7.36087505]
[1746739158653,1.0,163.07,163.06,44.03676294]
[1746739158871,1.0,163.07,163.04,44.03676294]
[1746739159082,1.0,163.07,163.0,26.0]
[1746739159083,7.13244,163.07,163.0,26.0]
[1746739159372,7.13244,163.07,163.05,44.03676294]
[1746739159574,7.13244,163.07,162.97,51.22643225]
[1746739159875,7.13244,163.07,163.04,44.03676294]
[1746739160083,7.13244,163.07,163.0,26.0]
[1746739160376,18.64964886,163.06,163.02,44.03676294]
[1746739160584,18.64964886,163.06,162.96,52.605644]
[1746739160766,62.6864118,163.06,163.0,44.03676294]
[1746739161074,18.64964886,163.06,162.96,70.03676294]
[1746739161265,18.64964886,163.06,163.01,44.03676294]
[1746739161453,62.6864118,163.06,162.93,57.74953107]
[1746739161649,18.64964886,163.04,162.93,51.6123]
[1746739161867,18.64964886,163.04,162.96,44.03676294]
[1746739162067,18.64964886,163.04,163.0,44.03676294]
[1746739162273,18.64964886,163.04,162.93,50.0]
[1746739162799,1.6322,163.01,162.93,50.0]
[1746739163100,6.6069,163.0,162.93,50.0]
[1746739163263,6.6069,163.0,162.86,17.82020231]
[1746739163264,18.64964886,162.99,162.86,10.0]
[1746739163464,18.64964886,162.95,162.86,10.0]
[1746739163797,24.78951501,162.87,162.86,10.0]
[1746739163996,6.13986615,162.87,162.86,10.0]